bitfinex/quotes_ETHUSD_20251012
["timestamp","ask_amount","ask_price","bid_price","bid_amount"]
[1760243624403,1.92,3824.8,3823.6,0.002]
[1760243624404,1.92,3824.7,3823.6,0.002]
[1760243624608,4.53499437,3824.1,3823.6,0.002]
[1760243625124,4.53526793,3823.7,3823.6,0.002]
[1760243625481,1.92,3823.7,3823.6,0.002]
[1760243625686,2.58677,3823.7,3823.6,0.002]
[1760243626337,1.92,3823.7,3823.6,0.002]
[1760243626698,2.3726,3823.7,3823.6,0.002]
[1760243626898,1.92,3823.7,3823.6,0.002]
[1760243627598,0.26143362,3825.0,3823.6,0.002]
[1760243627798,2.61465619,3824.6,3823.7,2.61520867]
[1760243628022,0.97381562,3824.5,3823.8,2.61519074]
[1760243628237,0.4526,3824.5,3823.9,2.61511528]
[1760243628937,0.2249,3825.5,3823.9,0.6336]
[1760243629134,0.2249,3825.5,3823.6,0.6356]
[1760243629135,0.4526,3825.0,3823.6,0.6356]
[1760243629354,0.1304,3824.5,3824.0,2.61505467]
[1760243629695,0.4526,3824.4,3824.0,2.61505467]
[1760243629999,0.4526,3824.4,3824.3,2.61485762]
[1760243630200,0.4526,3824.4,3823.6,0.002]
[1760243630396,0.1304,3824.1,3824.0,2.61506043]
[1760243630834,0.1304,3824.1,3823.6,0.002]
[1760243631133,0.1304,3823.8,3823.6,2.61732771]
[1760243631437,0.4526,3823.7,3823.6,2.61732594]
[1760243631835,0.4526,3823.7,3823.6,4.53732594]
[1760243631998,0.1304,3823.8,3823.7,1.92]
[1760243632203,0.4526,3823.8,3823.6,2.61732629]
[1760243633107,0.4526,3823.7,3823.6,0.002]
[1760243633803,3.06786793,3823.7,3823.6,0.002]
[1760243640212,0.4526,3823.7,3823.6,0.002]
[1760243640613,3.06786793,3823.7,3823.6,0.002]
[1760243641145,0.4526,3823.7,3823.6,0.002]
[1760243641350,3.37464967,3823.7,3823.6,0.002]
[1760243642346,0.75938174,3823.7,3823.6,0.002]
[1760243642546,2.3726,3824.1,3823.6,0.002]
[1760243642724,0.001,3824.4,3823.6,0.002]
[1760243642725,2.61485915,3824.3,3823.6,0.002]
[1760243642911,0.4526,3823.7,3823.6,0.002]
[1760243643845,0.1304,3823.7,3823.6,0.002]
[1760243644029,0.1304,3823.7,3823.6,2.61732797]
[1760243644235,0.001,3824.4,3823.7,2.61526793]
[1760243644557,0.1304,3823.9,3823.8,2.61519953]
[1760243644754,0.583,3823.9,3823.6,0.002]
[1760243644969,7.03266255,3823.8,3823.6,0.002]
[1760243645173,3.36379419,3823.7,3823.6,0.002]
[1760243645372,10.84905674,3823.7,3823.6,0.002]
[1760243646076,12.76905674,3823.7,3823.6,0.002]
[1760243647950,13.40265674,3823.7,3823.6,0.002]
[1760243649447,13.40265674,3823.7,3823.2,0.002]
[1760243649448,17.69394826,3823.3,3823.2,1e-08]
[1760243649780,3.24941521,3822.9,3822.8,0.002]
[1760243649939,5.16941521,3822.9,3822.8,0.002]
[1760243650139,5.62201521,3822.9,3822.8,0.002]
[1760243650657,4.98841521,3822.9,3822.8,0.002]
[1760243650860,5.74882847,3822.9,3822.8,0.002]
[1760243656058,9.64490268,3822.3,3821.8,0.002]
[1760243656256,4.53636273,3822.1,3821.8,0.002]
[1760243656656,4.98896273,3822.1,3821.8,0.002]
[1760243656843,6.45234927,3822.1,3821.8,0.002]
[1760243660065,7.08594927,3822.1,3821.8,0.002]
[1760243662758,6.45234927,3822.1,3821.8,0.002]
[1760243663083,10.09762528,3822.1,3821.8,0.002]
[1760243663454,12.01762528,3822.1,3821.8,0.002]
[1760243664051,9.64316219,3821.9,3821.8,0.002]
[1760243664295,9.82856219,3821.9,3821.8,0.002]
[1760243664457,13.68031468,3821.9,3821.8,0.002]
[1760243665653,2.61663657,3821.7,3821.6,1e-08]
[1760243665853,4.53663657,3821.7,3821.6,1e-08]
[1760243666092,4.98663657,3821.7,3821.6,1e-08]
[1760243668584,2.61704744,3821.1,3821.0,0.002]
[1760243668796,4.53704744,3821.1,3821.0,0.002]
[1760243669306,4.98704744,3821.1,3821.0,0.002]
[1760243669616,5.11791997,3821.1,3821.0,0.002]
[1760243670771,4.98704744,3821.1,3821.0,0.002]
[1760243671107,6.99992825,3821.1,3821.0,0.002]
[1760243673404,7.63352825,3821.1,3821.0,0.002]
[1760243678421,6.99992825,3821.1,3821.0,0.002]
[1760243678619,4.98704744,3821.1,3821.0,0.002]
[1760243678849,3.06704744,3821.1,3821.0,0.002]
[1760243679198,4.98704744,3821.1,3821.0,0.002]
[1760243679902,5.62064744,3821.1,3821.0,0.002]
[1760243680614,2.61745844,3820.5,3820.4,0.002]
[1760243680802,4.79920428,3820.5,3820.4,0.002]
[1760243681136,5.24920428,3820.5,3820.4,0.002]
[1760243682801,3.32920428,3820.5,3820.4,0.002]
[1760243683045,3.26534584,3820.5,3820.4,0.002]
[1760243683219,0.4474,3820.5,3820.4,0.002]
[1760243684610,3.06485844,3820.5,3820.4,0.002]
[1760243684800,4.98485844,3820.5,3820.4,0.002]
[1760243686744,3.25119547,3820.3,3820.2,1e-08]
[1760243686933,7.31064153,3820.3,3820.2,1e-08]
[1760243687134,7.12444153,3820.3,3820.2,1e-08]
[1760243687518,0.4474,3820.3,3820.2,1e-08]
[1760243689239,1.62969513,3821.6,3820.2,1e-08]
[1760243689427,0.4474,3820.8,3820.2,1e-08]
[1760243690135,0.4474,3820.8,3820.3,2.61759547]
[1760243690330,0.4474,3820.7,3820.3,2.61759547]
[1760243690642,0.4474,3820.7,3820.4,2.61752553]
[1760243691237,0.4474,3820.7,3820.3,3.14152546]
[1760243691936,0.4428,3820.6,3820.2,1e-08]
[1760243692252,0.4428,3821.3,3820.6,2.61733033]
[1760243692451,1.62969513,3821.6,3820.2,1.09990001]
[1760243692452,0.4428,3821.6,3820.2,1.09990001]
[1760243692754,0.4428,3821.6,3820.8,2.6172521]
[1760243692955,0.4428,3821.5,3820.7,2.61731247]
[1760243693139,0.4428,3821.4,3820.6,2.61735001]
[1760243693334,0.4428,3821.4,3820.3,0.58554852]
[1760243693335,0.4428,3821.3,3820.3,0.58554852]
[1760243693557,3.05979926,3821.2,3820.2,1e-08]
[1760243693965,2.617251,3820.9,3820.2,1e-08]
[1760243694160,0.4428,3821.2,3820.2,1e-08]
[1760243694486,2.61732143,3820.7,3820.2,1e-08]
[1760243694804,2.61759547,3820.3,3820.2,1e-08]
[1760243694969,2.61752612,3820.5,3820.2,1e-08]
[1760243695169,0.4428,3820.3,3820.2,1e-08]
[1760243697542,3.06039547,3820.3,3820.2,1e-08]
[1760243699228,0.4428,3820.3,3820.2,1e-08]
[1760243700235,3.06039547,3820.3,3820.2,1e-08]
[1760243700444,3.62817497,3820.3,3820.2,1e-08]
[1760243700932,5.54817497,3820.3,3820.2,1e-08]
[1760243701116,2.9305795,3820.3,3820.2,1e-08]
[1760243701318,4.98039547,3820.3,3820.2,1e-08]
[1760243702433,2.3628,3820.3,3820.2,1e-08]
[1760243702638,3.06039547,3820.3,3820.2,1e-08]
[1760243705195,17.95529168,3820.3,3820.2,1e-08]
[1760243705400,2.61773252,3820.1,3820.0,0.002]
[1760243705598,4.53786957,3819.9,3819.8,0.002]
[1760243705922,18.14650285,3819.7,3817.4,0.1304]
[1760243706257,2.61919072,3818.0,3817.0,2.61980232]
[1760243706409,0.6602,3817.9,3816.3,2.62033907]
[1760243706612,0.77073907,3817.8,3817.0,2.61978995]
[1760243706800,0.32793907,3817.8,3816.9,2.61992183]
[1760243707099,0.4428,3817.7,3817.3,2.61962389]
[1760243707298,0.4428,3817.6,3817.0,2.61985751]
[1760243707537,0.4428,3817.6,3816.4,0.77496391]
[1760243707739,0.4428,3817.6,3816.5,0.6336]
[1760243708031,0.4428,3817.6,3817.2,2.61966731]
[1760243708239,0.2174,3817.9,3817.2,2.61966731]
[1760243708544,0.2174,3817.9,3816.9,2.61992716]
[1760243708770,0.2174,3817.9,3817.5,2.61944963]
[1760243709040,0.4428,3817.8,3817.6,2.61944618]
[1760243709241,0.4428,3817.8,3817.0,0.37198272]
[1760243709443,0.4428,3817.8,3817.5,2.61945855]
[1760243709732,1.92,3819.0,3817.0,0.37198272]
[1760243709733,0.4428,3818.2,3817.7,2.61936835]
[1760243709914,0.4428,3818.1,3817.7,2.61936835]
[1760243710233,0.4428,3818.0,3817.8,2.61928769]
[1760243710538,0.4428,3817.9,3817.8,2.61928769]
[1760243710722,3.06129377,3819.0,3818.1,2.61905625]
[1760243710922,2.3628,3818.9,3818.1,2.619067]
[1760243711126,0.4428,3818.9,3817.7,0.6336]
[1760243711332,0.4428,3818.9,3817.9,0.6336]
[1760243711509,0.4428,3818.9,3818.6,2.61869858]
[1760243711708,7.46746255,3818.8,3818.6,2.61869858]
[1760243712771,7.46746255,3818.8,3818.5,2.61882104]
[1760243713280,7.46746255,3818.7,3817.9,2.61924094]
[1760243713479,0.4428,3818.6,3817.5,0.002]
[1760243713683,10.08624093,3818.6,3817.5,0.002]
[1760243713850,2.61891389,3818.4,3817.5,2.62150543]
[1760243714052,2.61904014,3818.2,3817.5,0.002]
[1760243714262,9.64377514,3818.1,3817.5,0.002]
[1760243714449,7.46746255,3818.1,3817.5,0.002]
[1760243715074,7.46746255,3818.1,3817.6,2.61944094]
[1760243715384,0.4428,3818.0,3817.5,2.62150366]
[1760243715584,0.6602,3817.9,3817.5,2.62150366]
[1760243715882,7.02466255,3818.1,3817.7,2.6193517]
[1760243716182,0.1304,3817.7,3817.5,0.002]
[1760243716880,0.1304,3817.7,3817.5,2.62150157]
[1760243717285,0.5732,3817.7,3817.5,2.62150157]
[1760243717588,0.5732,3817.7,3817.5,0.002]
[1760243717987,0.4428,3817.6,3817.5,0.002]
[1760243718156,0.4428,3817.6,3817.5,2.62151538]
[1760243718358,0.4428,3817.6,3817.5,0.002]
[1760243718590,10.08690932,3817.6,3817.5,0.002]
[1760243718882,12.6898051,3817.6,3817.5,0.002]
[1760243719090,4.53972126,3817.2,3817.1,0.002]
[1760243719261,0.1304,3817.1,3815.1,0.1304]
[1760243719448,0.6336,3817.4,3814.1,0.4663]
[1760243719449,0.1304,3815.3,3814.1,0.4663]
[1760243719647,0.4428,3815.6,3814.9,2.62130068]
[1760243719879,0.1304,3815.4,3815.0,2.6211682]
[1760243720186,12.97489621,3816.8,3814.8,2.6213694]
[1760243720187,0.1304,3814.9,3814.8,2.6213694]
[1760243720386,0.1304,3814.9,3814.8,3.33765303]
[1760243720547,0.1304,3815.6,3814.8,1.31298363]
[1760243720748,0.1304,3815.6,3815.5,2.62088848]
[1760243721252,0.4428,3816.1,3814.9,0.6336]
[1760243721453,0.4428,3816.1,3815.8,2.62067647]
[1760243721786,0.448,3816.0,3815.8,2.62066556]
[1760243722079,0.448,3816.0,3815.9,2.62061374]
[1760243722385,0.448,3816.6,3815.3,0.6336]
[1760243722690,0.448,3817.0,3816.5,2.62020175]
[1760243722843,0.448,3816.9,3816.8,2.61993555]
[1760243723049,0.448,3817.2,3816.8,2.61993555]
[1760243723280,0.448,3817.1,3816.9,2.6199266]
[1760243723465,0.448,3817.0,3816.9,2.6199266]
[1760243723802,0.448,3817.0,3816.7,2.62001804]
[1760243723983,2.61953177,3817.5,3816.3,2.62028112]
[1760243724192,0.448,3816.9,3815.1,0.6336]
[1760243724396,0.2174,3817.9,3816.1,0.6336]
[1760243724684,0.2174,3817.9,3816.6,0.6336]
[1760243724685,0.448,3817.8,3816.6,0.6336]
[1760243724888,0.448,3817.8,3816.8,0.6336]
[1760243725083,0.448,3817.8,3817.6,2.6193878]
[1760243725284,0.448,3817.7,3817.4,2.61954338]
[1760243725489,0.2174,3817.9,3816.8,0.6336]
[1760243725685,0.448,3817.6,3816.9,0.37110856]
[1760243725855,0.448,3817.6,3817.4,2.61952618]
[1760243726185,0.448,3817.6,3817.5,2.61951538]
[1760243726567,0.448,3818.2,3817.8,2.61930955]
[1760243726752,0.4457,3818.1,3817.8,2.61930955]
[1760243726959,0.4457,3818.5,3817.3,2.61962227]
[1760243727182,0.4457,3818.5,3818.0,2.6191223]
[1760243727387,2.61852607,3819.0,3818.1,2.61909912]
[1760243727601,0.4457,3818.4,3818.2,2.61901229]
[1760243727785,0.4457,3818.3,3818.2,2.61903514]
[1760243727996,0.2174,3819.9,3818.2,0.52382356]
[1760243728180,0.4457,3819.8,3818.2,3.25263514]
[1760243728504,0.4457,3819.7,3819.2,2.61834676]
[1760243728708,0.2174,3819.9,3819.2,2.61834676]
[1760243728709,0.4457,3819.6,3819.2,2.61834676]
[1760243728906,0.4457,3819.5,3819.3,2.61827249]
[1760243729207,0.6631,3819.9,3819.4,2.61821228]
[1760243729371,0.6631,3819.9,3818.4,0.4574]
[1760243729372,0.6813,3820.2,3818.4,0.4574]
[1760243729703,0.4639,3820.1,3818.3,2.61896655]
[1760243729916,0.4639,3820.1,3818.2,0.6336]
[1760243729917,0.4639,3820.1,3818.7,1.92]
[1760243730214,2.61787841,3819.9,3818.9,2.6185445]
[1760243730411,0.2043,3819.8,3818.9,2.6185445]
[1760243730597,0.663,3819.8,3819.0,2.61848231]
[1760243730771,0.32808784,3819.7,3819.0,2.61848231]
[1760243731171,0.1314,3819.2,3818.6,0.1304]
[1760243731371,0.1304,3818.9,3818.6,2.61875472]
[1760243731571,0.1304,3818.9,3818.7,2.61867383]
[1760243732009,0.1304,3818.9,3818.5,2.61877085]
[1760243732174,0.1304,3818.9,3818.4,2.61887416]
[1760243732175,0.1304,3818.9,3818.3,4.66930023]
[1760243732508,0.1304,3818.9,3818.3,0.1304]
[1760243732711,0.1304,3818.3,3817.3,0.1304]
[1760243732870,0.1304,3818.0,3817.5,2.61951509]
[1760243733071,0.1304,3817.7,3817.5,2.61951509]
[1760243733271,0.1304,3817.7,3817.6,2.61944677]
[1760243733471,1.92,3819.1,3817.6,0.4574]
[1760243733472,0.1304,3818.0,3817.6,0.4574]
[1760243733884,0.1304,3818.0,3817.9,2.61924094]
[1760243735624,0.5891,3818.0,3817.4,0.1304]
[1760243736131,0.5891,3818.0,3817.7,2.61937766]
[1760243736838,0.1304,3817.7,3816.8,2.75036662]
[1760243736989,0.6808,3817.9,3817.1,2.61976518]
[1760243737193,0.1304,3817.4,3817.1,2.61976518]
[1760243737523,0.1304,3817.9,3817.8,2.6192513]
[1760243738131,0.809,3817.9,3816.2,0.6646]
[1760243738447,0.1304,3817.3,3817.0,2.61982903]
[1760243738828,0.4432,3817.2,3816.6,0.1304]
[1760243739137,0.1304,3816.8,3816.2,2.75075852]
[1760243739548,0.4432,3816.7,3816.2,0.1304]
[1760243739841,0.1304,3816.3,3816.2,2.62034856]
[1760243740804,0.1304,3816.3,3816.0,2.62052601]
[1760243740805,0.1304,3816.7,3816.6,2.62008315]
[1760243741000,0.1304,3816.7,3816.5,2.62019387]
[1760243741544,0.1304,3816.7,3816.6,2.6201331]
[1760243741743,0.1304,3816.7,3816.2,2.62035542]
[1760243741914,0.1304,3816.7,3816.6,2.6201331]
[1760243742644,0.1304,3816.7,3816.4,2.62026741]
[1760243742645,0.1304,3817.0,3816.7,2.62006148]
[1760243743435,0.1304,3817.0,3816.9,2.61992716]
[1760243743811,0.4432,3817.5,3816.9,2.61992716]
[1760243744154,0.4432,3817.5,3817.2,2.61972126]
[1760243744155,0.1304,3817.3,3817.2,2.61972126]
[1760243744313,0.1304,3817.3,3817.1,2.61977596]
[1760243744514,0.1304,3817.3,3816.7,0.1304]
[1760243744515,0.4434,3817.2,3816.7,0.1304]
[1760243744711,0.1304,3817.0,3816.7,2.62005593]
[1760243744951,0.1304,3817.0,3815.8,0.4556]
[1760243744952,0.4434,3817.0,3815.8,0.4556]
[1760243745119,0.4434,3817.1,3816.6,1.92]
[1760243745319,0.4434,3817.0,3816.4,2.62025628]
[1760243745553,0.1304,3816.6,3816.4,2.62027041]
[1760243745720,0.5738,3816.6,3816.1,1.92]
[1760243745915,0.1304,3816.4,3816.1,2.62046934]
[1760243746121,2.1383,3817.8,3816.3,0.1444]
[1760243746318,0.1304,3816.9,3816.8,2.6199958]
[1760243749548,0.1304,3817.6,3816.9,0.6336]
[1760243749748,0.1304,3817.6,3817.5,2.6194962]
[1760243749915,0.1304,3817.8,3817.7,2.61936177]
[1760243752648,0.001,3818.0,3817.9,2.61924094]
[1760243752958,0.001,3818.0,3817.9,3.25284094]
[1760243753354,0.001,3818.0,3817.9,3.70354094]
[1760243753535,0.001,3818.0,3817.9,3.83394094]
[1760243754265,0.001,3818.0,3817.9,4.53165979]
[1760243754970,0.001,3818.0,3817.9,3.38324094]
[1760243755271,0.001,3818.0,3817.9,3.83394094]
[1760243755444,0.001,3818.0,3817.9,3.38324094]
[1760243756253,0.001,3818.0,3817.9,18.59843715]
[1760243758381,0.001,3818.0,3817.9,5.62354094]
[1760243758549,0.001,3818.0,3817.9,3.70354094]
[1760243762891,0.001,3818.0,3817.9,3.25284094]
[1760243763089,0.001,3818.0,3817.2,0.4507]
[1760243763396,0.001,3818.0,3816.9,0.4507]
[1760243763592,0.001,3818.0,3817.3,2.6195957]
[1760243763792,2.83985686,3817.9,3816.4,0.4507]
[1760243764090,2.61943423,3817.7,3816.8,2.61999069]
[1760243764255,0.4496,3817.6,3816.5,2.62019191]
[1760243764453,2.61985491,3817.1,3816.3,0.002]
[1760243764657,0.4496,3817.6,3816.3,0.002]
[1760243764866,2.61999455,3816.9,3816.3,0.002]
[1760243765067,0.30695946,3816.8,3816.3,0.002]
[1760243765289,0.4496,3816.9,3816.3,0.002]
[1760243765692,2.61958991,3817.4,3816.3,0.002]
[1760243765693,0.2206,3817.9,3816.3,0.002]
[1760243765896,0.4496,3817.7,3816.3,0.002]
[1760243766060,0.2206,3817.9,3816.7,0.6336]
[1760243766262,0.1304,3817.3,3817.2,2.61972126]
[1760243766581,0.3290339,3817.8,3816.7,0.764]
[1760243766582,0.001,3818.0,3817.3,2.61962105]
[1760243766781,0.1304,3817.5,3816.9,0.5811]
[1760243766983,0.001,3818.0,3816.9,0.6336]
[1760243767187,0.001,3818.0,3817.9,2.61924094]
[1760243767663,0.001,3818.0,3817.9,6.14740191]
[1760243773329,0.001,3818.0,3817.9,5.17284094]
[1760243774390,0.001,3818.0,3817.9,5.62354094]
[1760243774800,0.001,3818.0,3817.9,5.17284094]
[1760243775225,0.001,3818.0,3817.9,5.62354094]
[1760243777018,0.001,3818.0,3817.9,4.53924094]
[1760243777910,0.001,3818.0,3817.8,0.1304]
[1760243777911,0.001,3818.0,3817.8,2.61925194]
[1760243778112,0.4473,3817.9,3816.2,0.002]
[1760243778422,0.1304,3817.5,3817.2,2.6197068]
[1760243778993,0.1304,3817.5,3817.1,2.6197851]
[1760243779216,0.1304,3817.5,3817.4,2.61958401]
[1760243779619,7.77195881,3817.8,3817.7,2.61937815]
[1760243779820,7.77195881,3817.8,3817.6,2.61938557]
[1760243779992,7.77195881,3817.8,3817.7,2.61937815]
[1760243781114,7.02466255,3817.8,3817.7,3.25297815]
[1760243781809,0.001,3818.0,3816.3,0.002]
[1760243782010,2.62027041,3816.4,3816.3,0.002]
[1760243782238,4.99457041,3816.4,3816.3,0.002]
[1760243782751,0.4543,3816.4,3816.3,0.002]
[1760243782909,0.4543,3816.8,3816.3,0.002]
[1760243783751,0.4543,3816.7,3816.3,0.002]
[1760243785112,2.61992062,3817.0,3816.3,0.002]
[1760243785313,2.61994791,3816.9,3816.3,0.002]
[1760243785545,2.62007738,3816.7,3816.3,0.002]
[1760243786047,0.4543,3816.6,3816.3,0.002]
[1760243786259,0.76173774,3816.6,3816.3,0.002]
[1760243786952,3.38187645,3816.6,3816.3,0.002]
[1760243787253,0.4543,3816.5,3816.3,0.002]
[1760243788075,0.30743774,3816.6,3816.3,0.002]
[1760243788239,7.02466255,3817.0,3816.3,0.002]
[1760243788438,0.4543,3817.5,3816.3,0.002]
[1760243788673,2.61976582,3817.2,3816.3,0.002]
[1760243788870,2.61959621,3817.4,3816.3,0.002]
[1760243788871,3.1437395,3817.1,3816.3,0.002]
[1760243789073,2.61988899,3817.0,3816.3,0.002]
[1760243789573,3.59803546,3817.1,3816.3,0.002]
[1760243789734,0.1304,3816.8,3816.3,0.002]
[1760243790940,0.4543,3816.7,3816.3,0.002]
[1760243791266,0.58245935,3816.7,3816.3,0.002]
[1760243791470,0.4543,3816.6,3816.3,0.002]
[1760243791632,0.1304,3816.8,3816.3,0.002]
[1760243791837,2.75041925,3816.8,3816.3,0.002]
[1760243792271,0.4543,3816.7,3816.3,0.002]
[1760243792475,0.1304,3816.5,3816.3,0.002]
[1760243792638,0.32048917,3816.4,3816.3,0.002]
[1760243793564,3.39505958,3816.4,3816.3,0.002]
[1760243794474,3.39505958,3816.4,3816.2,0.002]
[1760243794475,4.54054507,3816.0,3815.9,0.002]
[1760243794774,4.54054507,3816.0,3813.6,2.62214043]
[1760243794775,1.92,3815.8,3813.6,0.4308]
[1760243794960,1.92,3815.8,3813.5,0.2072]
[1760243794961,0.4524,3815.7,3814.1,0.2158]
[1760243795269,0.32048917,3816.4,3814.4,1.19954229]
[1760243795475,2.62085075,3815.6,3814.5,0.4308]
[1760243795773,2.62089729,3815.5,3814.6,0.6336]
[1760243796140,0.32048917,3816.4,3814.4,0.76874229]
[1760243796341,3.073014,3815.9,3814.4,0.76874229]
[1760243796539,2.62116292,3815.2,3814.4,0.76874229]
[1760243796742,2.62109456,3815.2,3814.4,0.76874229]
[1760243797162,0.3073014,3815.8,3814.4,0.76874229]
[1760243797340,2.62123197,3815.0,3814.4,0.76874229]
[1760243797540,0.4524,3815.1,3814.4,0.76874229]
[1760243797766,2.62130463,3814.9,3814.4,0.76874229]
[1760243797955,0.4524,3815.1,3814.4,0.76874229]
[1760243797956,2.62123297,3815.0,3814.4,0.76874229]
[1760243798152,0.3073633,3815.0,3814.4,0.76874229]
[1760243798353,2.62097104,3815.4,3814.4,0.76874229]
[1760243799003,2.6212194,3815.1,3814.4,0.76874229]
[1760243799875,4.54157556,3814.5,3814.4,0.76874229]
[1760243800078,2.62153087,3814.6,3814.4,0.76874229]
[1760243800264,0.4524,3814.5,3814.4,0.76874229]
[1760243800466,0.4524,3815.0,3814.4,0.76874229]
[1760243800771,2.97696622,3815.7,3814.4,0.76874229]
[1760243800772,3.07321979,3815.6,3814.4,0.76874229]
[1760243800996,2.62112189,3815.2,3814.4,0.76874229]
[1760243801282,2.62110393,3815.2,3814.4,0.76874229]
[1760243801688,0.4524,3815.3,3814.4,0.76874229]
[1760243801689,2.62116585,3815.1,3814.4,0.76874229]
[1760243801886,2.62109868,3815.2,3814.4,0.76874229]
[1760243802389,0.4524,3815.3,3814.4,0.76874229]
[1760243802586,2.62074083,3815.8,3814.7,0.6336]
[1760243802818,0.4524,3816.6,3814.9,0.6336]
[1760243803019,2.62027429,3816.4,3814.9,2.5536]
[1760243803320,12.55020674,3816.9,3814.9,2.5536]
[1760243803618,2.62054507,3816.0,3814.9,0.4629]
[1760243803804,0.4524,3816.3,3815.0,0.6336]
[1760243804017,2.62048637,3816.1,3815.0,0.6336]
[1760243804319,2.62054623,3816.0,3815.1,0.30165]
[1760243804891,2.62054623,3816.0,3815.1,0.30365]
[1760243805885,0.4524,3816.3,3815.1,0.30365]
[1760243806082,3.07280262,3816.3,3815.1,2.62315865]
[1760243806318,2.62042478,3816.2,3815.1,0.002]
[1760243806543,2.62042478,3816.2,3815.1,1.922]
[1760243806827,2.62042478,3816.2,3815.2,0.75597277]
[1760243807322,2.62050014,3816.1,3815.2,0.75597277]
[1760243807491,2.62041181,3816.2,3815.2,0.75597277]
[1760243807690,0.4524,3816.3,3815.3,0.6336]
[1760243807902,3.07274489,3816.3,3815.3,0.6336]
[1760243808102,3.07274489,3816.3,3815.3,1.00556072]
[1760243809423,2.62053991,3816.1,3815.3,1.00556072]
[1760243809610,3.07275017,3816.3,3815.3,1.00556072]
[1760243809611,2.62042023,3816.2,3815.3,1.00556072]
[1760243809810,0.4524,3817.1,3815.7,2.5536]
[1760243810017,2.61993301,3816.9,3815.7,0.6336]
[1760243810216,2.61993301,3816.9,3815.6,0.6336]
[1760243810432,2.62013647,3816.6,3815.6,0.6336]
[1760243810626,2.62013647,3816.6,3815.6,1.19733824]
[1760243810934,2.6203239,3816.4,3815.6,0.6336]
[1760243811438,2.6203239,3816.4,3815.5,3.25448582]
[1760243811848,2.6203239,3816.4,3815.5,2.5536]
[1760243812248,3.07260454,3816.5,3815.5,3.25448427]
[1760243813340,2.62027249,3816.4,3815.7,0.6336]
[1760243813508,2.6202852,3816.4,3815.7,0.6336]
[1760243813708,2.6202852,3816.4,3815.4,0.1304]
[1760243813709,0.1304,3816.1,3815.4,0.1304]
[1760243813904,2.62061076,3816.0,3815.4,0.1304]
[1760243814545,2.75088127,3816.1,3815.4,0.1304]
[1760243814716,0.1304,3816.1,3815.4,0.1304]
[1760243815441,0.1304,3816.1,3815.5,3.68748014]
[1760243815664,0.4443,3816.8,3815.7,0.6336]
[1760243815810,0.4443,3817.6,3816.1,0.6336]
[1760243816014,2.75026524,3817.0,3816.4,0.1304]
[1760243816246,0.53700034,3816.9,3816.4,0.1304]
[1760243816420,0.1304,3817.0,3816.4,0.1304]
[1760243816824,2.7503958,3816.8,3816.1,0.1304]
[1760243817150,2.7503958,3816.8,3815.8,0.1304]
[1760243817151,0.1304,3816.4,3815.8,0.1304]
[1760243817352,2.75067391,3816.4,3815.8,0.1304]
[1760243817929,2.6203809,3816.3,3815.1,2.62314832]
[1760243818147,0.1304,3816.0,3815.3,2.0504]
[1760243818456,0.1304,3816.0,3815.4,0.6336]
[1760243818631,2.75096783,3816.0,3815.4,0.6336]
[1760243819342,0.1304,3816.0,3815.5,1.92]
[1760243819531,0.1304,3816.0,3815.4,0.6336]
[1760243820260,2.61997552,3816.9,3815.4,0.6336]
[1760243820261,0.4443,3816.9,3815.7,0.6336]
[1760243820420,2.62035868,3816.3,3815.7,0.764]
[1760243820750,0.1304,3816.4,3815.7,0.764]
[1760243820955,2.62042646,3816.2,3815.7,0.764]
[1760243821152,2.62042646,3816.2,3815.1,3.05610352]
[1760243821153,0.4443,3816.1,3815.1,0.002]
[1760243821353,0.1304,3816.0,3815.6,2.62080695]
[1760243821557,0.1304,3816.0,3815.5,0.6336]
[1760243821941,0.1304,3816.0,3815.5,3.6874727]
[1760243822466,2.6202028,3816.5,3815.7,3.25429862]
[1760243822623,0.1304,3816.3,3815.7,0.764]
[1760243822827,0.1304,3816.3,3815.7,3.38474787]
[1760243823721,0.001,3816.7,3816.2,0.778]
[1760243823944,0.001,3816.7,3816.2,2.76474593]
[1760243824145,0.001,3816.7,3816.3,0.6336]
[1760243824354,0.001,3816.7,3816.6,5.1737331]
[1760243824542,0.001,3816.7,3816.6,5.99642736]
[1760243824851,0.001,3816.7,3816.6,6.42942736]
[1760243825447,0.001,3816.7,3816.6,5.6067331]
[1760243834371,0.001,3816.7,3816.6,5.7371331]
[1760243834802,0.001,3816.7,3816.6,5.1035331]
[1760243835000,0.001,3816.7,3816.6,2.6201331]
[1760243835310,0.001,3816.7,3816.6,3.0531331]
[1760243835493,0.001,3816.7,3816.6,5.27844641]
[1760243835692,0.001,3816.7,3816.6,5.91204641]
[1760243845055,0.001,3816.7,3816.6,6.04244641]
[1760243846156,0.001,3816.7,3816.6,4.12244641]
[1760243848781,0.001,3816.7,3816.6,3.48884641]
[1760243849450,0.001,3816.7,3816.6,4.12244641]
[1760243849634,0.001,3816.7,3816.6,3.48884641]
[1760243849832,0.001,3816.7,3816.6,2.6201331]
[1760243850134,0.001,3816.7,3816.6,3.7220331]
[1760243852159,0.001,3816.7,3816.6,3.0884331]
[1760243852558,0.001,3816.7,3816.6,3.7220331]
[1760243852962,0.001,3816.7,3816.6,3.2537331]
[1760243853167,0.001,3816.7,3816.6,0.6336]
[1760243853939,0.001,3816.7,3816.6,5.1737331]
[1760243854150,0.001,3816.7,3815.7,0.4683]
[1760243854441,0.001,3816.7,3815.8,2.62068242]
[1760243854680,0.001,3816.7,3815.9,0.6336]
[1760243855180,0.001,3816.7,3816.2,1.92]
[1760243855581,0.001,3816.7,3816.1,2.5526]
[1760243855785,0.001,3816.7,3815.7,0.4683]
[1760243855786,0.001,3816.7,3816.3,0.6336]
[1760243855953,0.001,3816.7,3816.4,3.25387041]